Cogmind - Beta 16 @@@ ROGUE MODE // 2026.01.07 @ 20:47:18 Player: Lunishko Result: Destroyed by G-47 Trooper with Particle Gun Performance ------------- Evolutions (2) 1000 Regions Visited (3) 600 Robots Destroyed (50) 250 Value Destroyed (1500) 1500 Prototype IDs (2) 40 Alien Tech Used (0) 0 Bonus (16) 16 TOTAL SCORE: 3406 Bonus ------- High Alert Combat Kills 16 Cogmind --------- Core Integrity 0/550 Matter 290/300 Energy 160/160 System Corruption 1% Temperature Cool (9) Movement Core (250) Ox4 Location -8/Materials Parts ------- > --- POWER (2) -------- Light Nuclear Core > --- PROPULSION (3) --- (None) > --- UTILITY (4) ------ Medium Storage Unit > --- WEAPON (2) ------- (None) > --- INVENTORY (10) --- Structural Scanner Visual Processing Unit Peak State ------------ > --- POWER ------------ Light Nuclear Core > --- PROPULSION ------- Advanced Treads Advanced Treads Advanced Treads > --- UTILITY ---------- Medium Storage Unit Sensor Array Transport Network Coupler > --- WEAPON ----------- Heavy EM Pulse Gun Welding Torch > --- INVENTORY -------- Ion Engine Light Ion Engine Structural Scanner Visual Processing Unit ECM Suite EM Pulse Gun Particle Gun Beam Cannon Grenade Launcher [Rating: 19] Favorites ----------- Power Light Ion Engine Engine Light Ion Engine Power Core Light Nuclear Core Propulsion Light Treads Treads Light Treads Leg Improved Aluminum Leg Utility Medium Storage Unit Device Sensor Array Storage Medium Storage Unit Processor Signal Interpreter Weapon Grenade Launcher Energy Gun Heavy EM Pulse Gun Energy Cannon Beam Cannon Ballistic Cannon Flak Cannon Launcher Grenade Launcher Special Weapon Mining Laser Build | -11 -10 -9 -8 ------- Run | Yrd Mat Mat Mat Slots Evolved 4 | . . 2 2 Power 1 | . . . 1 Propulsion 1 | . . 1 . Utility 2 | . . 1 1 Weapon . | . . . . Parts Attached 37 | 8 11 13 5 Power 6 | 2 . 2 2 Engine 4 | 2 . 1 1 Core 2 | . . 1 1 Reactor . | . . . . Propulsion 10 | 2 2 5 1 Treads 8 | 2 2 3 1 Leg 2 | . . 2 . Wheel . | . . . . Hover . | . . . . Flight . | . . . . Utility 10 | 2 4 3 1 Device 4 | 1 1 1 1 Storage 3 | 1 2 . . Processor 3 | . 1 2 . Hackware . | . . . . Protection . | . . . . Artifact . | . . . . Weapon 11 | 2 5 3 1 Energy Gun 5 | 2 2 1 . Energy Cannon 1 | . 1 . . Ballistic Gun . | . . . . Ballistic Cannon 1 | . . . 1 Launcher 2 | . 1 1 . Special Weapon 2 | . 1 1 . Impact Weapon . | . . . . Slashing Weapon . | . . . . Piercing Weapon . | . . . . Special Melee Weapon . | . . . . Unidentified Prototypes . | . . . . Parts Lost 19 | . . 6 13 Power 4 | . . 1 3 Propulsion 4 | . . . 4 Utility 4 | . . 1 3 Weapon 7 | . . 4 3 Highest Loss Streak 9 | . . 2 9 To Critical Strikes . | . . . . Average Backups 6 | . 7 7 3 Power . | . 1 1 1 Propulsion . | . . . . Utility 2 | . 2 3 2 Weapon 2 | . 2 3 . Tool/Special . | . . . . Unused Backups 2 | . 1 . 1 Power . | . . . . Propulsion . | . . . . Utility 1 | . . . 1 Weapon . | . . . . Tool/Special 1 | . 1 . . Average Slot Usage (%) 91 | . 100 92 65 Engine 11 | . 14 7 12 Core 1 | . . 3 . Treads 24 | . 28 24 14 Device 10 | . 8 11 13 Storage 12 | . 14 11 9 Processor 7 | . 5 10 3 Energy Gun 8 | . 9 11 1 Energy Cannon 4 | . 5 3 4 Launcher 6 | . 9 5 . Special Weapon 2 | . 4 . . Peak Build Rating 19 | 7 9 19 19 Average Rating 10 | 4 7 13 11 On Entrance 7 | . 7 8 16 Avg Prop Armor Cover (%) 12 | . . 12 . Naked Turns . | . . . . Heaviest Build 90 | 13 90 22 32 Greatest Support 66 | 40 40 66 66 Greatest Overweight (x) 8 | . 2 6 8 Average Overweight (x) . | . . . 1 Largest Inventory Capacity 25 | 8 25 10 10 Average Capacity 9 | 7 10 10 10 Most Carried 11 | 4 11 10 5 Average Carried 6 | . 7 7 3 Final Capacity 10 | 8 10 10 10 Final Carried 10 | 1 10 5 2 Class Distribution -------------------- 95% | Mutant 4% | Scavenger-Mutant Dominant Class ---------------- Mutant | -10/Materials Mutant | -9/Materials Mutant | -8/Materials Resources | -11 -10 -9 -8 ----------- Run | Yrd Mat Mat Mat Matter Collected 1044 | 201 203 526 114 Remotely . | . . . . Salvage Created 1522 | 12 441 857 212 Parts 106 | 2 36 64 4 Haulers Intercepted 2 | . 1 1 . Recyclers Shooed 1 | . 1 . . Parts Field Recycled . | . . . . Retrieved Matter . | . . . . Parts Self-Destructed . | . . . . Prevented . | . . . . Parts Restored . | . . . . Kills | -11 -10 -9 -8 ------- Run | Yrd Mat Mat Mat Combat Hostiles Destroyed 37 | . 10 22 5 Guns 10 | . 3 7 . Cannons 16 | . 4 7 5 AOE 11 | . 3 8 . Classes Destroyed 12 | 1 5 4 2 Worker 1 | . . 1 . Builder 2 | . . 2 . Tunneler 4 | 1 1 2 . Hauler 2 | . 1 1 . Recycler 1 | . . . 1 Operator 1 | . 1 . . Watcher 2 | . 1 1 . Swarmer 3 | . 3 . . Grunt 28 | . 7 18 3 Brawler 1 | . . . 1 Duelist 3 | . . 2 1 Sentry 2 | . . 2 . Best Kill Streak 5 | 1 3 5 4 Combat Bots Only 5 | . 3 5 3 Max Kills in Single Turn 3 | 1 3 2 1 Gunslinging . | . . . . Exploded 3 | . 3 2 . Melee . | . . . . Uniques/NPCs Destroyed . | . . . . Combat | -11 -10 -9 -8 -------- Run | Yrd Mat Mat Mat Hostile Shots Fired 229 | . 38 79 112 Missed 55 | . 12 21 22 Hits 174 | . 26 58 90 Melee 6 | . . 2 4 Projectile 168 | . 26 56 86 Critical Strikes 8 | . . 4 4 Damage Taken 2603 | . 293 859 1451 Core 764 | . 92 106 566 Absorbed by Shields . | . . . . Core Remaining (%) 78 | 100 63 73 . Volleys Fired 142 | 1 48 66 27 Largest 2 | 2 2 2 2 Hottest 125 | 90 115 125 102 Shots Fired 210 | 2 70 95 43 Gun 86 | 2 40 38 6 Cannon 84 | . 27 20 37 Launcher 34 | . 2 32 . Special 6 | . 1 5 . Kinetic 21 | . . . 21 Thermal 118 | 2 68 26 22 Explosive 34 | . 2 32 . Electromagnetic 37 | . . 37 . Robot Hit Streak 9 | 1 8 9 7 Robot Miss Streak 9 | . 4 5 9 Penetration Max . | . . . . Secondary Targets 2 | . 2 . . Max Gunslinging Chain 1 | . 1 . . Shots Hit Robots 114 | 1 43 41 29 Core Hits 96 | 1 20 48 27 Critical Kills . | . . . . Critical Parts Destroyed . | . . . . Critical Strikes 1 | . 1 . . Burn 1 | . 1 . . Melee Attacks . | . . . . Impact . | . . . . Slashing . | . . . . Piercing . | . . . . Sneak Attacks . | . . . . Combat Hostiles . | . . . . Follow-up Attacks . | . . . . Damage Inflicted 2933 | 12 771 1566 584 Guns 714 | 12 355 287 60 Cannons 1006 | . 262 227 517 Explosions 1206 | . 154 1052 . Melee . | . . . . Ramming 7 | . . . 7 Kinetic 397 | . . . 397 Thermal 1053 | 12 617 244 180 Explosive 1206 | . 154 1052 . Electromagnetic 270 | . . 270 . Impact . | . . . . Slashing . | . . . . Piercing . | . . . . Highest Corruption 1 | . . . 1 Average Corruption 1 | . . . 1 Corruption Purged . | . . . . Corruption Blocked . | . . . . Effects 2 | . . . 2 Message Errors 1 | . . . 1 Heat Flow Errors 1 | . . . 1 Overload Shots . | . . . . Overflow Damage 17 | . 17 . . Projectiles 5 | . 5 . . Explosions 12 | . 12 . . Melee . | . . . . Knockbacks 19 | . . . 19 Impact . | . . . . Kinetic 17 | . . . 17 Secondary 2 | . . . 2 Self-Inflicted Damage 72 | . . 70 2 Shots 2 | . . 2 . Rammed 9 | . 1 . 8 Targets Rammed 9 | . 1 . 8 Kicked . | . . . . Crushed . | . . . . Highest Temperature 400 | 30 394 400 398 Average Temperature 137 | 18 131 109 180 Received Heat Transfer 1431 | . 147 438 846 Effects 19 | . 7 2 10 Shutdowns 3 | . 2 . 1 Energy Bleed 5 | . 2 . 3 Interference 9 | . 1 2 6 Damage (minor) 2 | . 2 . . Siege Activations . | . . . . Martial Activations . | . . . . Shielding Activations . | . . . . Robots Disrupted . | . . . . Combat Hostiles . | . . . . Robots Corrupted . | . . . . Combat Hostiles . | . . . . Parts Fried 1 | . . 1 . Impact Corruptions . | . . . . Robots Melted . | . . . . Combat Hostiles . | . . . . Parts Melted 1 | . 1 . . Heat Transferred 2520 | 37 1558 518 407 Parts Sabotaged . | . . . . Parts Stolen . | . . . . Parts Stripped . | . . . . Power Chain Reactions . | . . . . Alert | -11 -10 -9 -8 ------- Run | Yrd Mat Mat Mat Maximum Alert Level 2 | . . 2 . Low Security (%) 84 | 100 100 56 100 Level 1 13 | . . 38 . Level 2 1 | . . 4 . Level 3 . | . . . . Level 4 . | . . . . Level 5 . | . . . . High Security . | . . . . Max Security . | . . . . Peak Influence 417 | 5 104 417 173 Initial 173 | . . 8 173 Average 89 | . 32 163 113 Influence Increases 1279 | 5 356 763 155 Destroy 0b10 Robot/C 740 | . 200 440 100 Destroy 0b10 Robot/NC 65 | 5 20 35 5 Destroy Leader 168 | . 54 94 20 Successful Hack 22 | . 13 9 . Disable Machine 75 | . 60 15 . Destroy Structure 134 | . 9 125 . Lose Combat Pursuer 75 | . . 45 30 Influence Decreases 1251 | 5 336 372 538 Entered New Map 250 | . . 12 238 Time Decay 821 | 5 336 310 170 Lost Part 180 | . . 50 130 Squads Dispatched 4 | . 2 2 . Investigation 2 | . 1 1 . Extermination . | . . . . Reinforcement 2 | . 1 1 . Assault . | . . . . Garrison . | . . . . Intercept . | . . . . Searches Triggered . | . . . . Construction Impeded . | . . . . Haulers Reinforced . | . . . . Active Scanning Responses . | . . . . Cargo Convoy Interrupts . | . . . . Stealth | -11 -10 -9 -8 --------- Run | Yrd Mat Mat Mat Distress Signals 3 | . 2 1 . Communications Jammed . | . . . . Distress Signals . | . . . . Times Spotted 61 | . 21 28 12 Peak Tracking Total 5 | . 4 5 4 Tactical Retreats 6 | . . 2 4 ECM-based Alert Blocks 2 | . . . 2 Traps | -11 -10 -9 -8 ------- Run | Yrd Mat Mat Mat Traps Triggered 1 | . 1 . . Indirectly . | . . . . Trap Hack Attempts . | . . . . Triggered . | . . . . Disarmed . | . . . . Reprogrammed . | . . . . Reused . | . . . . Traps Extracted . | . . . . Installed . | . . . . Triggered . | . . . . Machines | -11 -10 -9 -8 ---------- Run | Yrd Mat Mat Mat Machines Disabled 5 | . 4 1 . Max in Single Turn 2 | . 2 1 . Machines Repaired . | . . . . Machines Dismantled . | . . . . Machines Sabotaged . | . . . . Overloaded Fab Kills . | . . . . Hacking | -11 -10 -9 -8 --------- Run | Yrd Mat Mat Mat Machines Accessed 9 | . 6 3 . Terminals 9 | . 6 3 . Fabricators . | . . . . Repair Stations . | . . . . Recycling Units . | . . . . Scanalyzers . | . . . . Garrison Access . | . . . . Total Hacks 27 | . 18 9 . Successful 12 | . 8 4 . Failed 15 | . 10 5 . Catastrophic . | . . . . Database Lockouts . | . . . . Manual . | . . . . Terminals 27 | . 18 9 . Fabricators . | . . . . Repair Stations . | . . . . Recycling Units . | . . . . Scanalyzers . | . . . . Garrison Access . | . . . . Terminal Hacks 12 | . 8 4 . Robot Analysis 1 | . 1 . . Prototype ID Bank 1 | . 1 . . Emergency Access Points 1 | . 1 . . Alert Level 1 | . . 1 . Locate Traps 2 | . 2 . . Dispatch Records 1 | . . 1 . Maintenance Status 1 | . 1 . . Transport Status 1 | . 1 . . Reinforcement Status 1 | . . 1 . Zone Layout 2 | . 1 1 . Fabricator Hacks . | . . . . Repair Station Hacks . | . . . . Recycling Unit Hacks . | . . . . Scanalyzer . | . . . . Garrison Access Hacks . | . . . . Unauthorized Hacks . | . . . . Terminals . | . . . . Fabricators . | . . . . Repair Stations . | . . . . Recycling Units . | . . . . Scanalyzers . | . . . . Garrison Access . | . . . . Data Cores Recovered . | . . . . Used . | . . . . Hacking Detections 5 | . 3 2 . Full Trace Events 1 | . . 1 . Feedback Events . | . . . . Feedback Blocked . | . . . . Robot Schematics Acquired . | . . . . Robots Built . | . . . . Authchips . | . . . . Time . | . . . . Total Robot Build Rating . | . . . . Part Schematics Acquired . | . . . . Parts Built . | . . . . Authchips . | . . . . Time . | . . . . Total Part Build Rating . | . . . . Part Studies Acquired . | . . . . Parts Repaired . | . . . . Time . | . . . . Parts Recycled . | . . . . Recycled Matter . | . . . . Retrieved Matter . | . . . . Retrieved Components . | . . . . Parts Scanalyzed . | . . . . Part Schematics Acquired . | . . . . Parts Damaged . | . . . . Bothacking | -11 -10 -9 -8 ------------ Run | Yrd Mat Mat Mat Used RIF Installer . | . . . . Robots Hacked . | . . . . Non-combat . | . . . . Combat . | . . . . Robot Hacks Applied . | . . . . Relay Couplers Released . | . . . . Fabnet Peak Effective % . | . . . . Robots Rewired . | . . . . Allies Hacked . | . . . . Hacks Repelled . | . . . . Allies | -11 -10 -9 -8 -------- Run | Yrd Mat Mat Mat Total Allies . | . . . . Largest Group . | . . . . Highest-Rated Group . | . . . . Highest-Rated Ally . | . . . . Total Orders . | . . . . Ally Attacks . | . . . . Total Damage . | . . . . Kills . | . . . . Allies Corrupted . | . . . . Allies Melted . | . . . . Intel | -11 -10 -9 -8 ------- Run | Yrd Mat Mat Mat Active Infowar (turns) 1590 | 23 609 826 132 Sensors 958 | . . 826 132 Structural 114 | . 114 . . Seismic 518 | 23 495 . . T.N.C. 367 | . . 367 . ECM 131 | . . . 131 Robot Analysis Total 1 | . 1 . . Derelict Logs Recovered . | . . . . Drone Launches . | . . . . Drone Recoveries . | . . . . Exploration | -11 -10 -9 -8 ------------- Run | Yrd Mat Mat Mat Turns Passed 2326 | 69 1089 826 342 Spaces Moved 1167 | 39 566 426 136 Core 61 | 13 . 1 47 Treads 1051 | 26 566 370 89 Legs 55 | . . 55 . Wheels . | . . . . Hover . | . . . . Flight . | . . . . Fastest Speed 50 | 50 160 120 145 Average Speed 156 | 123 161 146 173 Slowest Speed 450 | 160 320 350 450 Overloaded Moves . | . . . . Propulsion Burnouts . | . . . . Robots Hopped . | . . . . Potential Cave-ins . | . . . . Cave-ins Triggered . | . . . . Exploration Rate (%) 34 | 3 87 37 9 Regions Visited 3 Branch Regions . Pre-discovered Areas . | . . . . Known Exits Taken 2 | . 1 1 . Unknown Exits Taken 1 | 1 . . . Scrap Searched . | . . . . Spaces Dug 9 | . . 9 . Terrain Destroyed 161 | . 7 154 . Melee . | . . . . Projectile . | . . . . AOE 161 | . 7 154 . Terrain Rammed . | . . . . Walls Destroyed . | . . . . Machines Disabled . | . . . . Actions | -11 -10 -9 -8 --------- Run | Yrd Mat Mat Mat Total 1441 | 58 665 529 189 Wait 25 | 3 8 6 8 Move 1164 | 38 565 425 136 Hop . | . . . . Pick Up 36 | 8 18 7 3 Fast Attach 3 | . . 3 . Attach 24 | 7 . 11 6 Detach . | . . . . Swap 22 | 1 15 5 1 Drop 16 | . 10 6 . Fire 142 | 1 48 66 27 Melee . | . . . . Ram 8 | . . . 8 Kick . | . . . . Crush 1 | . 1 . . Escape Stasis . | . . . . Rewire . | . . . . Trap . | . . . . Miscellaneous . | . . . . Route ------- -11/Scrapyard -10/Materials (discovered 3 exits: *Mat x3) -9/Materials (discovered 2 exits: *Mat x2) -8/Materials History --------- Turn | Location | Event 8 | -11/Scrapyard | Discovered new exit (range 14) 70 | -11/Scrapyard | Entered Materials 305 | -10/Materials | Build established: Mutant 683 | -10/Materials | Discovered new exit (range 6) 730 | -10/Materials | Identified exit to Materials 930 | -10/Materials | Discovered exit to Materials (range 5) 1095 | -10/Materials | Discovered exit to Materials (range 17) 1159 | -10/Materials | Entered another Materials area 1159 | -9/Materials | Evolved 2 slots: Propulsion x1, Utility x1 1557 | -9/Materials | Discovered new exit (range 4) 1972 | -9/Materials | Discovered new exit (range 9) 1983 | -9/Materials | Identified exit to Materials 1985 | -9/Materials | Entered another Materials area 1985 | -8/Materials | Evolved 2 slots: Power x1, Utility x1 2233 | -8/Materials | Core integrity fell below 50% 2253 | -8/Materials | Lost 9 parts (2p3n1u3w) 2307 | -8/Materials | Core integrity fell below 20% 2327 | -8/Materials | Destroyed by G-47 Trooper with Particle Gun Last Messages --------------- 02213_ Slammed into G-47 Trooper. 02213_ Sensor Array destroyed. 02214_ K-01 Serf collects debris. 02216_ Slammed into G-47 Trooper. 02222_ Ion Engine destroyed. 02239_ Critical hit (Burn: +37). 02273_ K-01 Serf cleans the Processing Tank. 02277_ Acquired 22 matter. 02281_ ITB7H NW/0VBXW FJ=JLBG> PUK7PT4U:FGC0N 02281_ Processing Tank disabled. 02283_ Acquired Lgt. Ion Engine. 02283_ ECM Suite destroyed. 02294_ Critical hit (Burn: +37). 02303_ Lgt. Ion Engine destroyed. 02304_ Slammed into G-47 Trooper. 02306_ Critical hit (Burn: +37). 02307_ K-01 Serf collects debris. 02308_ Slammed into G-47 Trooper. 02312_ K-01 Serf collects debris. 02314_ Slammed into G-47 Trooper. Map ----- +----------------------------------------------------+ | ??????????????????????????????## ##????????????? | | ????????????????????########### ########?????? | | ????????????????????# % #?????? | | ????????????????????# T #?????? | | ????????????????????# =%= #?????? | | ??????????????????????????#+### ! #### #?????? | | ??????????????????????????????##### #????????????? | | ??????????????????????????????????# #????????????? | | ??????????????????????????????????# #????????????? | | ????????????????????? ??????????# #????????????? | | ???????????????????? #?????????# #????????????? | | ???????????????????? #?????????# #????????????? | | ????????????????????# ########### #????????????? | | ????????????????????# # ## #????????????? | | ????????????????????# # """"" ## #????????????? | | ????????????????????# # """"" ## ###??????????? | | ????????????????????# # """"" ## #??????????? | | ????????????????????# # ## #??????????? | | ????????????????????# # """"" ## #??????????? | | ????????????????????# # """"" ## #??????????? | | ????????????????????# # "" " ## #??????????? | | ????????????????????# # %%% k %## #??????????? | | ????????????????????# #####/##### #??????????? | | ????????????????????# gg #??????????? | | ????????????????????# #??????????? | | ????????????????????# @ #??????????? | | ???????????????#########+### ########??????????? | | ???????????????# # #?????????????????? | | ???????????????# """ """ # #?????????????????? | | ???????????????# """ """ # #?????????????????? | | ???????????????# """ """ #####?????????????????? | | ???????????????# """ """ #?????????????????????? | | ???????????????#! #?????????????????????? | | ???????????????# #?????????????????????? | | ???????????????#############?????????????????????? | | | | | | | | | | | | | | | | | | | | | | | | | | | | | | | +----------------------------------------------------+ Best States ------------- Heat Dissipation 31 Energy Generation 15 Energy Capacity 400 Matter Stores 300 Matter Capacity 300 Sight Range 16 Robot Scan Range 14 Terrain Scan Density 10 ECM Strength 1 Evasion (%) 55 Recoil Reduction 3 Item Schematics ----------------- None Robot Schematics ------------------ None Fabricated ------------ Nothing Repaired ---------- Nothing Studied --------- None Alien Tech Used ----------------- None Achievements -------------- Bumper Bots Challenges ------------ None Game ------ Seed ResetCloakRail Manual? 0 Play Time 00:34:02 Cumulative 10.7 hours Start 2026.01.07 @ 20:08:06 End 2026.01.07 @ 20:47:18 Sessions 1 Manual Loads 0 Difficulty Rogue Special Mode None Game No. 11 Rogue 11 Adventurer 0 Explorer 0 Win Type - Total 0 Types 0/0/0/0/0/0/0/0/0/0 Lore% 16 Gallery% 10 Achievement% 13 Wizard Run 0 Options --------- Layout 1 ASCII 0 Keyboard 0 Movement Mouse Keybinds 0 Fullscreen 1 Font 48/Proggy Map View 50x35 Zoom Use 0% Tactical HUD 1 Map Filters NONE Filters NONE Steam 1 RUN: 311cdc19-c235-4af1-84fe-3c355d3a25c1